bitfinex-derivatives/quotes_SOLF0:USTF0_20250318
["timestamp","ask_amount","ask_price","bid_price","bid_amount"]
[1742263168272,30.3,125.2,125.16,10.35581849]
[1742263168678,30.3,125.2,125.15,0.05150985]
[1742263169476,7.9895,125.18,125.15,0.05150985]
[1742263169779,30.3,125.17,125.15,0.05150985]
[1742263170078,30.3,125.16,125.15,0.05150985]
[1742263170273,38.2904,125.16,125.15,0.05150985]
[1742263170473,3.2424,125.19,125.15,0.05150985]
[1742263170780,30.3,125.18,125.15,0.05150985]
[1742263170970,7.99,125.17,125.15,0.05150985]
[1742263171374,7.9901,125.17,125.15,0.05150985]
[1742263171877,30.3,125.19,125.15,0.05150985]
[1742263172074,30.3,125.21,125.15,10.40732834]
[1742263172268,30.3,125.21,125.17,10.35581849]
[1742263172672,7.9883,125.2,125.18,0.05793497]
[1742263172874,3.502,125.23,125.18,0.05793497]
[1742263176269,7.9875,125.21,125.18,0.05793497]
[1742263176482,30.28,125.21,125.18,0.05793497]
[1742263177171,38.2675,125.21,125.18,0.05793497]
[1742263177568,38.2675,125.21,125.18,8.04693497]
[1742263178281,30.28,125.21,125.18,0.05793497]
[1742263178879,38.2675,125.21,125.18,0.05793497]
[1742263179185,366.5683,125.25,125.18,0.05793497]
[1742263179483,38.2655,125.24,125.19,10.35581849]
[1742263179878,38.2655,125.24,125.2,8.03983989]
[1742263180181,38.2655,125.24,125.2,0.05263989]
[1742263180483,38.2655,125.24,125.21,7.987]
[1742263181176,7.986,125.23,125.2,8.04013989]
[1742263181581,38.266,125.23,125.2,8.04013989]
[1742263182077,7.986,125.23,125.2,8.04013989]
[1742263182283,38.266,125.23,125.2,8.04013989]
[1742263182485,38.266,125.23,125.21,7.9871]
[1742263182884,38.266,125.23,125.2,8.04013989]
[1742263183183,7.9855,125.24,125.2,0.05263989]
[1742263183485,30.28,125.23,125.2,0.05263989]
[1742263183686,30.28,125.23,125.21,7.9871]
[1742263184374,363.0,125.25,125.21,10.35581849]
[1742263184779,10.1878,125.27,125.21,10.35581849]
[1742263184974,37.0631,125.27,125.21,10.35581849]
[1742263185176,37.0631,125.27,125.23,0.05942439]
[1742263185477,47.41891849,125.27,125.23,0.05942439]
[1742263187187,7.9853,125.24,125.23,0.05942439]
[1742263187387,30.28,125.24,125.17,16.91351849]
[1742263187688,30.28,125.24,125.17,13.62941849]
[1742263188482,7.9892,125.18,125.16,275.7]
[1742263188888,8.04872879,125.18,125.16,275.75715298]
[1742263189490,0.05952879,125.18,125.16,275.75715298]
[1742263189790,0.05952879,125.18,125.16,283.74715298]
[1742263190489,8.04862879,125.18,125.16,283.74715298]
[1742263190689,0.05952879,125.18,125.16,0.05715298]
[1742263191192,7.9897,125.17,125.16,0.05715298]
[1742263194794,0.05952879,125.18,125.16,10.41297147]
[1742263195293,0.05952879,125.18,125.16,18.40307147]
[1742263195492,0.05952879,125.18,125.16,10.41297147]
[1742263195889,0.05952879,125.18,125.16,0.05715298]
[1742263196488,8.04922879,125.18,125.16,0.05715298]
[1742263196796,30.31952879,125.18,125.16,0.05715298]
[1742263197387,7.9897,125.17,125.16,0.05715298]
[1742263197694,30.31952879,125.18,125.16,0.05715298]
[1742263198092,38.30912879,125.18,125.16,0.05715298]
[1742263198588,30.31952879,125.18,125.16,0.05715298]
[1742263198997,7.9897,125.17,125.16,0.05715298]
[1742263200494,26.2096323,125.17,125.16,0.05715298]
[1742263200994,12.45266269,125.17,125.16,0.05715298]
[1742263201193,38.30892879,125.18,125.16,0.05715298]
[1742263201396,30.31952879,125.18,125.16,0.05715298]
[1742263201695,7.9897,125.17,125.16,0.05715298]
[1742263203690,26.23088031,125.17,125.16,0.05715298]
[1742263203897,21.47508031,125.17,125.1,6.6176261]
[1742263204095,6.6176261,125.15,125.1,6.6176261]
[1742263204398,7.9933,125.12,125.1,6.6176261]
[1742263204702,7.9933,125.12,125.09,14.6121261]
[1742263204902,0.05154526,125.12,125.1,14.6117261]
[1742263205095,0.05154526,125.12,125.1,10.34531811]
[1742263205291,0.05154526,125.12,125.1,40.60531811]
[1742263205502,0.05154526,125.12,125.11,7.9936]
[1742263205799,0.05154526,125.12,125.1,10.34531811]
[1742263205995,0.05154526,125.12,125.09,0.05838882]
[1742263207103,7.9941,125.11,125.09,0.05838882]
[1742263207906,0.05154526,125.12,125.09,0.05838882]
[1742263208499,8.04454526,125.12,125.09,8.05298882]
[1742263208803,0.05154526,125.12,125.09,0.05838882]
[1742263209003,0.05154526,125.12,125.1,7.9938]
[1742263209404,0.05154526,125.12,125.09,0.05838882]
[1742263210798,0.05154526,125.12,125.04,286.00531811]
[1742263211003,7.9953,125.09,125.04,286.00531811]
[1742263211204,30.26,125.08,125.04,10.34531811]
[1742263211405,30.26,125.08,125.04,18.34301811]
[1742263211805,7.9969,125.06,125.04,10.34531811]
[1742263212007,0.05040188,125.07,125.05,0.06085251]
[1742263212598,7.9968,125.06,125.05,0.06085251]
[1742263212803,0.05040188,125.07,125.05,0.06085251]
[1742263213005,0.05040188,125.07,125.06,7.9968]
[1742263213210,0.05040188,125.07,125.06,18.34211811]
[1742263214308,30.28,125.12,125.09,7.9942]
[1742263214509,30.28,125.12,125.06,13.84811811]
[1742263215614,0.05378074,125.1,125.08,0.05152859]
[1742263216313,8.04798074,125.1,125.08,0.05152859]
[1742263216718,7.9948,125.09,125.08,0.05152859]
[1742263216915,0.05378074,125.1,125.08,0.05152859]
[1742263217322,0.05378074,125.1,125.08,8.04692859]
[1742263217518,0.05378074,125.1,125.08,10.3968467]
[1742263218315,0.05378074,125.1,125.09,7.9948]
[1742263221828,0.05378074,125.1,125.08,18.3920467]
[1742263222026,0.05378074,125.1,125.08,10.3968467]
[1742263222529,0.05378074,125.1,125.09,7.9948]
[1742263223127,0.05378074,125.1,125.08,18.3920467]
[1742263224526,0.05378074,125.1,125.08,0.05152859]
[1742263225319,7.9948,125.09,125.08,0.05152859]
[1742263225521,38.2748,125.09,125.08,0.05152859]
[1742263225721,38.2748,125.09,125.02,275.74]
[1742263225722,40.62531811,125.09,125.02,275.74]
[1742263226027,7.9984,125.04,125.01,3.4486]
[1742263226417,38.2777,125.05,125.01,3.4486]
[1742263226620,30.28,125.07,125.02,10.34531811]
[1742263226819,0.0599951,125.04,125.02,30.31884111]
[1742263227019,38.2551,125.09,125.03,10.34531811]
[1742263227219,38.2551,125.09,125.05,10.34531811]
[1742263227524,30.26,125.09,125.03,10.34531811]
[1742263228120,0.06085931,125.07,125.05,8.05803596]
[1742263228327,0.06085931,125.07,125.05,0.06113596]
[1742263228525,7.9968,125.06,125.05,0.06113596]
[1742263229323,8.05715931,125.07,125.05,0.06113596]
[1742263229529,0.06085931,125.07,125.05,0.06113596]
[1742263229730,30.28,125.06,125.05,0.06113596]
[1742263230628,38.2768,125.06,125.05,0.06113596]
[1742263231225,30.28,125.06,125.05,0.06113596]
[1742263231630,30.28,125.06,125.05,8.05853596]
[1742263232030,30.28,125.06,125.05,0.06113596]
[1742263233338,38.2768,125.06,125.05,0.06113596]
[1742263239233,41.5189,125.06,125.05,0.06113596]
[1742263240642,38.2768,125.06,125.05,0.06113596]
[1742263241439,0.06085931,125.07,125.05,0.06113596]
[1742263241741,30.34085931,125.07,125.05,0.06113596]
[1742263242036,38.33695931,125.07,125.05,0.06113596]
[1742263242837,30.34085931,125.07,125.05,8.05843596]
[1742263243038,30.34085931,125.07,125.05,0.06113596]
[1742263243537,38.33745931,125.07,125.05,0.06113596]
[1742263243739,30.34085931,125.07,125.05,0.06113596]
[1742263244142,7.9968,125.06,125.05,0.06113596]
[1742263248044,7.9968,125.06,125.05,3.596e-05]
[1742263248438,12.47065452,125.06,125.05,3.596e-05]
[1742263248741,15.8654999,125.06,125.05,3.596e-05]
[1742263250045,23.02201896,125.06,125.05,3.596e-05]
[1742263250344,23.02128614,125.06,125.05,3.596e-05]
[1742263250947,15.86467928,125.06,125.05,3.596e-05]
[1742263252049,23.02106401,125.06,125.05,3.596e-05]
[1742263253243,15.86467928,125.06,125.05,3.596e-05]
[1742263253951,23.01818749,125.06,124.96,3.4907]
[1742263254152,10.34531811,125.01,124.93,13.61281811]
[1742263254345,363.0,125.05,124.97,10.34531811]
[1742263254549,30.28,125.05,124.99,10.34531811]
[1742263254944,30.28,125.05,125.01,0.05742818]
[1742263255152,0.0606832,125.03,125.01,8.05732818]
[1742263255444,0.0606832,125.03,125.01,0.05742818]
[1742263256054,0.0606832,125.03,125.02,7.9993]
[1742263256245,0.0606832,125.03,125.01,10.40274629]
[1742263256645,0.0606832,125.03,125.02,7.9993]
[1742263257853,0.0606832,125.03,125.01,18.40264629]
[1742263258151,0.0606832,125.03,125.01,0.05742818]
[1742263258448,3.2569,125.11,125.02,286.24531811]
[1742263258752,30.26,125.12,125.08,10.34531811]
[1742263258954,7.9927,125.13,125.08,10.34531811]
[1742263259146,24.78886981,125.16,125.06,30.26]
[1742263259147,14.4435517,125.16,125.1,10.34531811]
[1742263259344,14.4435517,125.16,125.13,7.9919]
[1742263259549,0.0580623,125.14,125.13,7.9919]
[1742263259853,0.0580623,125.14,125.12,10.40542297]
[1742263259854,7.9923,125.13,125.12,0.06010486]
[1742263260054,38.2523,125.13,125.12,0.06010486]
[1742263260653,42.72649597,125.13,125.12,0.06010486]
[1742263261355,7.9954,125.09,125.06,10.34531811]
[1742263261763,30.26,125.1,125.05,6.859]
[1742263261947,7.9965,125.07,125.04,286.20531811]
[1742263262153,30.26,125.1,125.04,286.20531811]
[1742263262647,0.05077074,125.08,125.06,0.0541647]
[1742263262855,30.26,125.07,125.06,0.0541647]
[1742263263354,0.05077074,125.08,125.06,0.0541647]
[1742263263558,8.04627074,125.08,125.06,0.0541647]
[1742263263754,0.05077074,125.08,125.06,0.0541647]
[1742263264154,0.05077074,125.08,125.06,8.0504647]
[1742263264353,0.05077074,125.08,125.06,0.0541647]
[1742263267054,0.05077074,125.08,125.06,10.39948281]
[1742263267455,0.05077074,125.08,125.06,18.39588281]
[1742263268060,0.05077074,125.08,125.06,0.0541647]
[1742263268449,7.9961,125.07,125.06,0.0541647]
[1742263269153,8.04657074,125.08,125.06,0.0541647]
[1742263269766,0.05077074,125.08,125.06,0.0541647]
[1742263270352,0.05077074,125.08,125.06,10.39948281]
[1742263270555,0.05077074,125.08,125.06,18.39558281]
[1742263271051,38.2533,125.12,125.09,7.9948]
[1742263271252,10.34531811,125.18,125.1,10.34531811]
[1742263271557,19.63989387,125.17,125.14,7.9913]
[1742263271763,30.26,125.18,125.14,18.33661811]
[1742263271957,4.4822553,125.17,125.16,10.34531811]
[1742263272157,11.0641517,125.2,125.16,40.60531811]
[1742263272359,11.0641517,125.2,125.18,10.34531811]
[1742263272656,7.9884,125.19,125.16,40.60531811]
[1742263272861,11.0641517,125.2,125.16,40.60531811]
[1742263273257,11.0641517,125.2,125.17,0.05973784]
[1742263273460,0.05637379,125.19,125.17,0.05973784]
[1742263275064,0.05637379,125.19,125.18,10.34531811]
[1742263275762,0.05637379,125.19,125.17,0.05973784]
[1742263275963,8.04517379,125.19,125.17,0.05973784]
[1742263276160,0.05637379,125.19,125.17,0.05973784]
[1742263276564,8.04477379,125.19,125.17,0.05973784]
[1742263276762,0.05637379,125.19,125.17,0.05973784]
[1742263278164,0.05637379,125.19,125.17,8.04913784]
[1742263279364,0.05637379,125.19,125.17,0.05973784]
[1742263279957,7.9891,125.18,125.17,0.05973784]
[1742263281566,38.28507379,125.19,125.17,0.05973784]
[1742263282463,30.29637379,125.19,125.17,0.05973784]
[1742263283371,0.05637379,125.19,125.18,10.34531811]
[1742263283872,0.05637379,125.19,125.18,18.33441811]
[1742263284269,0.05637379,125.19,125.18,10.34531811]
[1742263284873,0.05637379,125.19,125.18,18.33441811]
[1742263285568,0.05637379,125.19,125.17,0.05973784]
[1742263285970,7.9891,125.18,125.17,0.05973784]
[1742263287866,38.2091,125.18,125.17,3.784e-05]
[1742263288474,48.55441811,125.18,125.17,3.784e-05]
[1742263288675,7.9939,125.11,125.09,10.34531811]
[1742263288879,30.22,125.14,125.09,10.34531811]
[1742263289078,30.22,125.14,125.08,275.62]
[1742263289475,30.22,125.14,125.07,20.36681811]
[1742263289981,0.06025713,125.12,125.09,0.05716542]
[1742263290182,30.22,125.11,125.09,0.05716542]
[1742263290383,7.9942,125.1,125.09,0.05716542]
[1742263290684,7.9942,125.1,125.09,6.542e-05]
[1742263293389,38.2138,125.11,125.09,6.542e-05]
[1742263293984,0.06025713,125.12,125.09,6.542e-05]
[1742263294583,8.05325713,125.12,125.09,7.99446542]
[1742263294779,0.06025713,125.12,125.09,6.542e-05]
[1742263295189,7.9942,125.1,125.09,6.542e-05]
[1742263295389,38.2142,125.1,125.09,6.542e-05]
[1742263296387,30.22,125.1,125.09,6.542e-05]
[1742263297177,0.06025713,125.12,125.09,6.542e-05]
[1742263297391,30.22,125.18,125.11,10.34531811]
[1742263297587,397.65898763,125.25,125.14,10.34531811]
[1742263297588,372.8311,125.23,125.14,10.34531811]
[1742263297790,30.22,125.22,125.16,18.33531811]
[1742263298091,7.9884,125.2,125.16,18.33531811]
[1742263298296,9.8311,125.23,125.18,18.33381811]
[1742263298487,30.22,125.22,125.18,10.34531811]
[1742263298689,0.05700815,125.19,125.18,10.34531811]
[1742263298894,30.22,125.22,125.18,10.34531811]
[1742263299094,0.05236155,125.21,125.17,0.06031476]
[1742263299992,7.9891,125.18,125.17,0.06031476]
[1742263300196,38.2091,125.18,125.17,0.06031476]
[1742263301183,30.27236155,125.21,125.17,0.06031476]
[1742263301785,30.27236155,125.21,125.18,16.53188624]
[1742263301986,0.05236155,125.21,125.18,16.53188624]
[1742263302188,0.05236155,125.21,125.19,7.9881]
[1742263302388,0.05236155,125.21,125.18,49.85358624]
[1742263303693,7.9882,125.2,125.17,3.32221476]
[1742263303891,0.05236155,125.21,125.17,3.32221476]
[1742263304485,8.03996155,125.21,125.17,11.31161476]
[1742263304695,0.05236155,125.21,125.17,11.31161476]
[1742263305195,0.05236155,125.21,125.17,0.06031476]
[1742263305390,30.22,125.2,125.17,0.06031476]
[1742263305790,7.9891,125.18,125.17,0.06031476]
[1742263307195,30.22,125.2,125.17,0.06031476]
[1742263307801,7.9891,125.18,125.17,0.06031476]
[1742263308694,0.05236155,125.21,125.17,0.06031476]
[1742263309096,0.05236155,125.21,125.18,16.53188624]
[1742263309292,0.05236155,125.21,125.19,7.9884]
[1742263309496,0.05236155,125.21,125.18,16.53188624]
[1742263310702,0.05236155,125.21,125.18,24.52058624]
[1742263311090,8.03966155,125.21,125.18,16.53188624]
[1742263311294,8.03966155,125.21,125.17,8.04971476]
[1742263311295,0.05236155,125.21,125.17,0.06031476]
[1742263311701,7.988,125.2,125.17,8.04971476]
[1742263311894,0.05236155,125.21,125.17,0.06031476]
[1742263312401,8.03986155,125.21,125.18,7.9887]
[1742263312600,0.05236155,125.21,125.17,0.06031476]
[1742263312800,0.05236155,125.21,125.18,16.53188624]
[1742263313003,0.05236155,125.21,125.2,24.51968624]
[1742263313497,30.2,125.25,125.22,7.986]
[1742263313695,36.8147,125.27,125.2,16.53188624]
[1742263313895,33.5164,125.27,125.2,16.53188624]
[1742263314096,7.9847,125.25,125.22,7.9863]
[1742263314298,33.5164,125.27,125.22,7.9863]
[1742263314499,33.5164,125.27,125.21,30.2]
[1742263314693,3.3164,125.27,125.21,30.2]
[1742263314894,0.05497239,125.25,125.23,8.04581877]
[1742263315098,0.05497239,125.25,125.23,0.06031877]
[1742263315500,8.03977239,125.25,125.23,0.06031877]
[1742263316009,0.05497239,125.25,125.23,0.06031877]
[1742263316703,0.05497239,125.25,125.24,7.9853]
[1742263317097,7.9853,125.24,125.23,0.06031877]
[1742263322514,7.988,125.2,125.17,11.3303]
[1742263322712,30.2,125.22,125.18,16.53188624]
[1742263323408,7.9862,125.23,125.18,49.84758624]
[1742263323609,0.05475885,125.21,125.19,0.05493588]
[1742263324007,0.05475885,125.21,125.2,7.9878]
[1742263324606,363.0,125.27,125.2,7.9878]
[1742263324607,363.0,125.27,125.2,24.51188624]
[1742263324905,30.2,125.29,125.23,16.53188624]
[1742263325304,30.2,125.29,125.24,7.9849]
[1742263325513,6.4306,125.32,125.24,30.2]
[1742263325715,0.05199774,125.28,125.25,0.05734573]
[1742263325918,0.05199774,125.28,125.26,16.53188624]
[1742263326409,0.05199774,125.28,125.27,7.9833]
[1742263326715,0.05199774,125.28,125.26,16.53188624]
[1742263326914,7.9837,125.27,125.25,0.05734573]
[1742263327116,0.05199774,125.28,125.25,0.05734573]
[1742263327613,7.984,125.26,125.25,0.05734573]
[1742263327813,0.05199774,125.28,125.25,0.05734573]
[1742263329012,0.05199774,125.28,125.25,16.58923197]
[1742263329316,0.05199774,125.28,125.25,46.76923197]
[1742263329614,0.05199774,125.28,125.27,7.9833]
[1742263330008,0.05199774,125.28,125.27,24.51518624]
[1742263330406,0.05199774,125.28,125.27,16.53188624]
[1742263330807,0.05199774,125.28,125.25,49.96333197]
[1742263331011,0.05199774,125.28,125.25,33.43144573]
[1742263331220,0.05199774,125.28,125.25,41.41574573]
[1742263331413,0.05199774,125.28,125.25,0.05734573]
[1742263331618,30.23199774,125.28,125.25,0.05734573]
[1742263332112,30.23199774,125.28,125.19,278.7583]
[1742263332313,30.18,125.28,125.19,278.7583]
[1742263332719,7.9869,125.22,125.19,286.7464]
[1742263333013,30.18,125.28,125.19,275.44]
[1742263333014,30.18,125.24,125.19,275.44]
[1742263333213,16.53188624,125.28,125.19,0.05257396]
[1742263333214,0.05945158,125.22,125.19,0.05257396]
[1742263333417,30.18,125.24,125.18,19.68928624]
[1742263333620,0.05246425,125.22,125.19,0.05548282]
[1742263334017,363.0,125.27,125.2,46.71188624]
[1742263334213,33.3515,125.31,125.23,16.53188624]
[1742263334417,30.18,125.31,125.24,38.1649]
[1742263334613,30.18,125.31,125.24,30.18]
[1742263335010,7.983,125.28,125.24,38.1649]
[1742263335211,0.05953355,125.29,125.26,0.05416968]
[1742263335415,0.05953355,125.29,125.26,8.03796968]
[1742263335619,0.05953355,125.29,125.26,0.05416968]
[1742263336016,0.05953355,125.29,125.27,7.983]
[1742263336220,0.05953355,125.29,125.27,46.71188624]
[1742263336523,0.05953355,125.29,125.28,7.9827]
[1742263336823,0.05953355,125.29,125.27,46.71188624]
[1742263337325,30.18,125.34,125.27,46.71188624]
[1742263337623,38.1592,125.34,125.3,7.9811]
[1742263337819,6.437,125.35,125.3,30.18]
[1742263338025,74.49960972,125.36,125.3,30.18]
[1742263338325,7.9786,125.35,125.3,30.18]
[1742263338521,0.02357639,125.34,125.32,0.05937864]
[1742263339522,7.9795,125.33,125.32,0.05937864]
[1742263341028,8.00267639,125.34,125.32,0.05937864]
[1742263341328,0.02357639,125.34,125.32,0.05937864]
[1742263341527,7.9795,125.33,125.32,0.05937864]
[1742263342428,0.02357639,125.34,125.33,7.9795]
[1742263342629,0.02357639,125.34,125.33,24.51138624]
[1742263342819,0.02357639,125.34,125.32,0.05937864]
[1742263343226,0.02357639,125.34,125.25,19.61168624]
[1742263343423,0.02357639,125.34,125.23,291.89188624]
[1742263343424,4.35095671,125.34,125.26,7.9838]
[1742263343633,367.35095671,125.34,125.23,322.07188624]
[1742263343832,7.49195671,125.33,125.23,322.07188624]
[1742263344030,30.18,125.32,125.23,322.07188624]
[1742263344225,30.18,125.32,125.27,16.53188624]
[1742263344431,0.05420809,125.29,125.27,0.05146195]
[1742263344631,0.05420809,125.29,125.27,8.03456195]
[1742263345234,0.05420809,125.29,125.27,0.05146195]
[1742263345731,8.03630809,125.29,125.27,0.05146195]
[1742263345927,0.05420809,125.29,125.27,8.03476195]
[1742263346129,0.05420809,125.29,125.27,0.05146195]
[1742263346326,393.16,125.34,125.27,16.58334819]
[1742263346525,3.1416,125.37,125.31,7.9805]
[1742263346729,34.51410211,125.36,125.31,7.9805]
[1742263346929,7.979,125.34,125.31,7.9805]
[1742263347628,30.16,125.33,125.31,0.05238971]
[1742263347928,30.16,125.33,125.25,46.69188624]
[1742263348132,7.9811,125.31,125.25,46.69188624]
[1742263348923,0.05825931,125.29,125.28,7.9824]
[1742263349426,0.05825931,125.29,125.27,8.04257958]
[1742263349831,7.9827,125.28,125.27,0.05937958]
[1742263350034,0.05825931,125.29,125.27,0.05937958]
[1742263350433,0.05825931,125.29,125.27,8.04227958]
[1742263350733,0.05825931,125.29,125.27,0.05937958]
[1742263353127,8.04065931,125.29,125.27,0.05937958]
[1742263353336,0.05825931,125.29,125.27,0.05937958]
[1742263353532,30.21825931,125.29,125.27,0.05937958]
[1742263353736,7.9827,125.28,125.27,0.05937958]
[1742263354930,30.21825931,125.29,125.27,0.05937958]
[1742263355133,8.04065931,125.29,125.27,0.05937958]
[1742263355434,0.05825931,125.29,125.27,0.05937958]
[1742263355637,7.9827,125.28,125.27,0.05937958]
[1742263356231,8.04075931,125.29,125.27,0.05937958]
[1742263356838,7.9827,125.28,125.27,0.05937958]
[1742263357138,0.05825931,125.29,125.27,0.05937958]
[1742263357938,8.04065931,125.29,125.27,0.05937958]
[1742263358537,7.9827,125.28,125.27,0.05937958]
[1742263358934,0.05825931,125.29,125.27,0.05937958]
[1742263359633,0.05825931,125.29,125.27,8.04237958]
[1742263359835,0.05825931,125.29,125.27,0.05937958]
[1742263360231,369.6393,125.36,125.28,16.53188624]
[1742263360432,6.6393,125.36,125.31,16.53188624]
[1742263361439,7.9792,125.34,125.32,0.05129273]
[1742263361741,0.02287734,125.35,125.32,0.05129273]
[1742263361937,7.9792,125.34,125.32,0.05129273]
[1742263362136,0.02287734,125.35,125.32,0.05129273]
[1742263362437,0.02287734,125.35,125.32,30.21129273]
[1742263362738,0.02287734,125.35,125.33,7.9792]
[1742263363135,8.00147734,125.35,125.32,38.19119273]
[1742263363439,0.02287734,125.35,125.32,30.21129273]
[1742263363841,0.02287734,125.35,125.33,7.9792]
[1742263364434,0.02287734,125.35,125.32,38.19119273]
[1742263364942,0.02287734,125.35,125.32,30.21129273]
[1742263365145,0.02287734,125.35,125.32,0.05129273]
[1742263365542,7.9792,125.34,125.32,0.05129273]
[1742263366445,7.9792,125.34,125.32,8.03139273]
[1742263367046,0.02287734,125.35,125.32,8.03139273]
[1742263367047,8.00147734,125.35,125.32,8.03139273]
[1742263367345,0.02287734,125.35,125.32,0.05129273]
[1742263367549,7.9795,125.33,125.32,0.05129273]
[1742263368344,7.9792,125.34,125.32,0.05129273]
[1742263368543,0.02287734,125.35,125.32,0.05129273]
[1742263368744,8.00147734,125.35,125.32,0.05129273]
[1742263368945,0.02287734,125.35,125.33,7.9795]
[1742263369147,0.02287734,125.35,125.32,30.21129273]
[1742263369350,8.00117734,125.35,125.32,30.21129273]
[1742263369741,0.02287734,125.35,125.33,7.9793]
[1742263370650,0.02287734,125.35,125.32,30.21129273]
[1742263370948,8.00117734,125.35,125.32,30.21129273]
[1742263371352,0.02287734,125.35,125.33,7.9792]
[1742263372245,0.02287734,125.35,125.32,30.21129273]
[1742263372850,0.02287734,125.35,125.33,7.9795]
[1742263373149,0.02287734,125.35,125.32,30.21129273]
[1742263373352,0.02287734,125.35,125.32,38.19119273]
[1742263373746,0.02287734,125.35,125.32,30.21129273]
[1742263373947,0.02287734,125.35,125.34,7.9789]
[1742263374848,3.1985,125.41,125.37,7.9769]
[1742263375039,6.99309032,125.44,125.37,16.53188624]
[1742263375245,41.52397744,125.43,125.37,16.53188624]
[1742263375449,4.37088712,125.42,125.38,30.16]
[1742263375646,30.16,125.44,125.37,16.53188624]
[1742263375844,11.35861959,125.43,125.36,33.4383]
[1742263376045,4.36869984,125.42,125.36,33.4383]
[1742263376350,6.98991975,125.43,125.39,0.05730848]
[1742263376550,4.36673372,125.42,125.39,0.05730848]
[1742263376747,30.16,125.41,125.39,0.05730848]
[1742263377060,4.36601629,125.4,125.34,30.16]
[1742263377246,30.16,125.41,125.34,30.16]
[1742263377450,4.36686227,125.4,125.34,30.16]
[1742263377647,30.16,125.41,125.34,30.16]
[1742263377941,4.36701918,125.4,125.34,30.16]
[1742263378144,30.16,125.41,125.33,27.87558624]
[1742263378145,30.16,125.41,125.33,19.89638624]
[1742263378348,0.05095367,125.38,125.36,0.06094556]
[1742263379450,7.977,125.37,125.36,0.06094556]
[1742263380353,0.05095367,125.38,125.36,0.06094556]
[1742263380754,7.977,125.37,125.36,0.06094556]
[1742263381746,12.34478998,125.37,125.36,4.556e-05]
[1742263382149,7.977,125.37,125.36,4.556e-05]
[1742263382651,8.02755367,125.38,125.36,4.556e-05]
[1742263383258,7.977,125.37,125.36,4.556e-05]
[1742263383756,0.05095367,125.38,125.36,4.556e-05]
[1742263384856,7.9748,125.41,125.38,7.9763]
[1742263385056,30.14,125.42,125.37,16.53188624]
[1742263385251,6.3456,125.44,125.38,7.976]
[1742263385462,30.14,125.47,125.41,16.53188624]
[1742263385654,4.35559954,125.46,125.4,30.14]
[1742263385855,4.35489286,125.45,125.4,30.14]
[1742263386157,380.4636517,125.49,125.42,0.06081657]
[1742263386158,30.19073771,125.44,125.42,0.06081657]
[1742263386361,7.9732,125.43,125.42,0.06081657]
[1742263390562,7.9732,125.43,125.42,1.657e-05]
[1742263390861,12.31577999,125.43,125.42,1.657e-05]
[1742263391763,21.91010623,125.43,125.42,1.657e-05]
[1742263392760,52.05010623,125.43,125.42,1.657e-05]
[1742263392961,7.9732,125.43,125.42,1.657e-05]
[1742263393354,0.05891545,125.44,125.42,1.657e-05]
[1742263393762,7.9732,125.43,125.42,1.657e-05]
[1742263394155,0.05891545,125.44,125.42,1.657e-05]
[1742263394958,8.03161545,125.44,125.42,1.657e-05]
[1742263395464,0.05891545,125.44,125.42,1.657e-05]
[1742263396463,8.03171545,125.44,125.42,1.657e-05]
[1742263396770,407.31960972,125.51,125.43,16.53188624]
[1742263397067,44.31960972,125.51,125.44,6.4996]
[1742263397465,30.14,125.52,125.44,6.4996]
[1742263397668,7.969,125.5,125.44,14.4717]
[1742263397856,38.109,125.5,125.46,0.05583763]
[1742263398061,0.05183083,125.48,125.46,0.05583763]
[1742263399170,7.9706,125.47,125.46,0.05583763]
[1742263400667,38.0906,125.47,125.46,0.05583763]
[1742263403472,38.0906,125.47,125.46,3.763e-05]
[1742263403674,53.43934074,125.47,125.46,3.763e-05]
[1742263403973,60.37678821,125.47,125.46,3.763e-05]
[1742263404160,60.3754488,125.47,125.46,3.763e-05]
[1742263404872,45.45934074,125.47,125.46,3.763e-05]
[1742263405777,53.43934074,125.47,125.46,3.763e-05]
[1742263405972,60.38123679,125.47,125.46,3.763e-05]
[1742263406476,65.63488624,125.47,125.46,3.763e-05]
[1742263406668,76.91676678,125.47,125.46,3.763e-05]
[1742263406867,7.9764,125.38,125.36,3.2196]
[1742263407072,30.12,125.39,125.34,16.77688541]
[1742263408169,7.9773,125.37,125.35,0.05874724]
[1742263408371,0.05655662,125.38,125.35,0.05874724]
[1742263408572,7.9776,125.36,125.35,0.05874724]
[1742263408781,38.0976,125.36,125.35,0.05874724]
[1742263410870,42.43850507,125.36,125.35,0.05874724]
[1742263411680,7.9805,125.32,125.29,3.3107]
[1742263412285,30.14,125.33,125.29,3.3107]